bitfinex/quotes_SOLUSD_20241020
["timestamp","ask_amount","ask_price","bid_price","bid_amount"]
[1729465044659,12.8256,166.84,166.79,2.43012567]
[1729465044846,12.8256,166.84,166.8,2.43012567]
[1729465045140,12.9256,166.84,166.81,2.43012567]
[1729465045316,12.8256,166.84,166.82,2.43012567]
[1729465045513,12.8256,166.84,166.83,2.43012567]
[1729465045514,12.9256,166.84,166.83,2.43012567]
[1729465045719,12.8256,166.84,166.83,2.43012567]
[1729465045919,12.9256,166.84,166.76,2.43012567]
[1729465046120,12.9256,166.84,166.77,2.43012567]
[1729465046330,12.9256,166.84,166.78,2.43012567]
[1729465046637,12.8256,166.84,166.79,2.43012567]
[1729465046935,12.9256,166.84,166.8,2.43012567]
[1729465047138,12.9256,166.84,166.81,2.43012567]
[1729465047341,12.9256,166.84,166.82,2.43012567]
[1729465047637,12.9256,166.84,166.83,2.43012567]
[1729465047884,12.9256,166.84,166.76,2.43012567]
[1729465048011,12.9256,166.84,166.75,20.1]
[1729465048212,12.9256,166.84,166.76,2.4274794]
[1729465048412,12.9256,166.84,166.75,20.1]
[1729465048413,0.1,166.82,166.77,2.4274794]
[1729465048637,0.1,166.82,166.78,2.4274794]
[1729465048844,23.876884,166.83,166.79,2.4274794]
[1729465049014,23.876884,166.83,166.8,2.4274794]
[1729465049211,12.9256,166.84,166.81,2.4274794]
[1729465049428,12.9256,166.84,166.82,2.4274794]
[1729465049623,12.9256,166.84,166.83,2.4274794]
[1729465050029,0.1,166.83,166.75,2.42917189]
[1729465050236,0.1,166.82,166.76,2.42977602]
[1729465050414,0.1,166.82,166.77,2.42977602]
[1729465050615,12.9256,166.84,166.78,2.42977602]
[1729465050845,12.9256,166.84,166.79,2.42977602]
[1729465051036,12.9256,166.84,166.8,2.42977602]
[1729465051228,12.9256,166.84,166.81,2.42977602]
[1729465051430,12.9256,166.84,166.82,2.42977602]
[1729465051634,12.9256,166.84,166.83,2.42977602]
[1729465052024,12.9256,166.84,166.75,2.42977602]
[1729465052344,30.8125,166.8,166.76,2.42977602]
[1729465052525,30.8125,166.8,166.77,2.42977602]
[1729465052718,30.8125,166.8,166.72,20.0]
[1729465052719,30.8125,166.8,166.78,2.42977602]
[1729465052922,30.8125,166.8,166.79,2.42977602]
[1729465053138,54.589384,166.8,166.79,2.42977602]
[1729465053344,0.1,166.78,166.72,2.43095206]
[1729465053646,0.1,166.78,166.73,2.43111316]
[1729465053838,12.8256,166.84,166.74,2.53111316]
[1729465054022,12.8256,166.84,166.76,0.1]
[1729465054222,12.8256,166.84,166.77,2.43111316]
[1729465054427,12.8256,166.84,166.78,2.43111316]
[1729465054636,12.8256,166.84,166.79,2.43111316]
[1729465054923,12.8256,166.84,166.8,2.43111316]
[1729465055143,12.8256,166.84,166.76,0.1]
[1729465055325,12.8256,166.84,166.81,2.42813133]
[1729465055525,12.8256,166.84,166.82,2.42813133]
[1729465055840,12.8256,166.84,166.83,2.42813133]
[1729465056645,12.8256,166.84,166.77,2.42813133]
[1729465056940,12.8256,166.84,166.78,2.42813133]
[1729465057246,12.8256,166.84,166.79,2.42813133]
[1729465057463,12.8256,166.84,166.8,2.42813133]
[1729465057626,12.8256,166.84,166.81,2.42813133]
[1729465057961,12.8256,166.84,166.82,2.42813133]
[1729465058133,12.8256,166.84,166.83,2.42813133]
[1729465058447,12.8256,166.84,166.77,2.42813133]
[1729465058648,12.8256,166.84,166.78,2.42813133]
[1729465059149,12.8256,166.84,166.79,2.42813133]
[1729465059359,12.8256,166.84,166.8,2.42813133]
[1729465059646,12.8256,166.84,166.81,2.42813133]
[1729465059846,12.8256,166.84,166.82,2.42813133]
[1729465060150,12.8256,166.84,166.83,2.42813133]
[1729465060373,12.8256,166.84,166.77,2.42813133]
[1729465060532,12.8256,166.84,166.78,2.42813133]
[1729465060735,12.8256,166.84,166.79,2.42813133]
[1729465060927,12.8256,166.84,166.8,2.42813133]
[1729465061127,12.8256,166.84,166.81,2.42813133]
[1729465061323,12.8256,166.84,166.82,2.42813133]
[1729465061551,12.9256,166.84,166.83,2.42813133]
[1729465061727,23.776884,166.83,166.75,2.4237068]
[1729465061932,23.776884,166.83,166.76,2.42373021]
[1729465062128,23.776884,166.83,166.75,0.1]
[1729465062329,23.776884,166.83,166.76,2.42423478]
[1729465062637,23.776884,166.83,166.77,2.42423478]
[1729465062840,23.776884,166.83,166.78,2.42423478]
[1729465063143,12.8256,166.84,166.79,2.42423478]
[1729465063342,12.8256,166.84,166.8,2.42423478]
[1729465063547,12.8256,166.84,166.81,2.42423478]
[1729465063850,12.8256,166.84,166.82,2.42423478]
[1729465064047,0.1,166.82,166.73,20.0]
[1729465064248,0.1,166.82,166.74,2.42460249]
[1729465064454,0.1,166.82,166.71,0.1]
[1729465064630,0.1,166.82,166.72,0.1]
[1729465065032,0.2,166.82,166.7,5.78200365]
[1729465065539,0.1,166.82,166.7,5.78200365]
[1729465065750,0.1,166.82,166.71,20.0]
[1729465066745,32.0215,166.78,166.71,20.0]
[1729465067270,32.0215,166.78,166.69,20.0]
[1729465067565,32.0215,166.78,166.69,25.65760327]
[1729465068367,32.0215,166.78,166.7,5.65760327]
[1729465068542,32.92085201,166.78,166.71,20.0]
[1729465070384,23.776884,166.77,166.71,20.0]
[1729465070563,32.92085201,166.78,166.67,20.0]
[1729465071048,23.776884,166.77,166.67,20.0]
[1729465071251,13.122,166.76,166.67,25.65760327]
[1729465072261,13.122,166.76,166.67,5.65760327]
[1729465073877,23.876884,166.75,166.68,20.0]
[1729465074261,23.876884,166.75,166.64,25.65760327]
[1729465074765,0.1,166.69,166.58,1.0415664]
[1729465075078,0.1,166.69,166.58,1.0413831]
[1729465075568,0.1,166.69,166.54,5.34704771]
[1729465075569,0.1,166.7,166.54,5.34704771]
[1729465075776,0.2,166.7,166.54,5.34704771]
[1729465075988,0.2,166.7,166.55,1.04185759]
[1729465076283,0.2,166.7,166.56,2.42355531]
[1729465076449,0.2,166.7,166.57,2.42275127]
[1729465076654,0.1,166.7,166.57,2.42275127]
[1729465076865,0.1,166.69,166.58,2.42275127]
[1729465077173,0.1,166.7,166.59,2.42275127]
[1729465077474,0.1,166.7,166.6,2.42275127]
[1729465077778,0.1,166.7,166.61,2.42275127]
[1729465078073,0.1,166.7,166.62,2.42275127]
[1729465078381,23.876884,166.71,166.63,2.42275127]
[1729465078545,23.876884,166.71,166.64,2.42275127]
[1729465078751,23.876884,166.71,166.65,2.42275127]
[1729465078951,23.876884,166.71,166.66,2.42275127]
[1729465079152,23.876884,166.71,166.67,2.42275127]
[1729465079465,23.876884,166.71,166.68,2.42275127]
[1729465079767,23.876884,166.71,166.69,2.42275127]
[1729465080074,45.3592,166.72,166.6,23.776884]
[1729465080384,45.3592,166.72,166.62,20.0]
[1729465080553,45.3592,166.76,166.64,20.0]
[1729465080752,45.3592,166.76,166.65,2.41583409]
[1729465081072,45.3592,166.76,166.66,22.41583409]
[1729465081276,45.4592,166.76,166.67,2.41583409]
[1729465081653,0.1,166.75,166.67,2.41583409]
[1729465081856,0.1,166.74,166.68,2.41583409]
[1729465082053,0.1,166.73,166.61,5.34704771]
[1729465082569,0.1,166.73,166.62,2.41550942]
[1729465082759,23.876884,166.75,166.63,2.41543813]
[1729465083077,23.976884,166.75,166.64,2.41543813]
[1729465083251,23.976884,166.75,166.65,2.41543813]
[1729465083452,23.976884,166.75,166.66,2.41543813]
[1729465083653,23.876884,166.75,166.67,2.41543813]
[1729465083949,23.876884,166.75,166.62,20.0]
[1729465083950,0.1,166.74,166.68,2.41543813]
[1729465084151,0.1,166.74,166.69,2.41543813]
[1729465084369,0.1,166.74,166.7,2.41543813]
[1729465084570,0.1,166.74,166.71,2.41543813]
[1729465084874,0.1,166.73,166.72,2.41543813]
[1729465085268,0.1,166.73,166.62,20.0]
[1729465085269,0.1,166.71,166.62,20.0]
[1729465085473,23.876884,166.68,166.61,5.34704771]
[1729465085687,0.1,166.65,166.55,1.04185759]
[1729465085851,0.1,166.66,166.55,1.04185759]
[1729465086051,44.05971326,166.69,166.56,5.34704771]
[1729465086256,23.776884,166.68,166.56,5.34704771]
[1729465087161,23.776884,166.68,166.57,20.0]
[1729465087352,23.876884,166.68,166.57,20.0]
[1729465087752,0.1,166.67,166.57,20.0]
[1729465088659,0.1,166.66,166.57,20.0]
[1729465088867,23.776884,166.68,166.57,20.0]
[1729465088868,0.1,166.67,166.57,20.0]
[1729465089065,23.776884,166.68,166.57,20.0]
[1729465089066,23.876884,166.68,166.57,20.0]
[1729465089468,0.1,166.67,166.57,20.0]
[1729465089771,0.1,166.66,166.57,20.0]
[1729465089976,0.1,166.67,166.53,27.5396]
[1729465090158,0.1,166.66,166.53,32.88664771]
[1729465090786,44.05971326,166.69,166.49,7.2556]
[1729465090787,23.776884,166.63,166.49,7.2556]
[1729465090962,23.776884,166.63,166.5,6.38873442]
[1729465091279,23.776884,166.63,166.51,20.0]
[1729465091459,24.67711372,166.63,166.51,20.0]
[1729465094286,12.9609,166.64,166.53,20.0]
[1729465094686,23.776884,166.63,166.53,20.0]
[1729465095364,13.8610793,166.64,166.53,20.0]
[1729465096089,13.8610793,166.64,166.55,20.0]
[1729465096590,44.21621326,166.69,166.57,20.0]
[1729465096791,44.21621326,166.69,166.59,20.0]
[1729465096980,44.21621326,166.69,166.58,23.776884]
[1729465097184,44.21621326,166.69,166.59,20.0]
[1729465097565,44.21621326,166.69,166.58,20.0]
[1729465097905,30.92,166.73,166.61,23.776884]
[1729465098067,30.92,166.73,166.62,20.0]
[1729465099785,30.92,166.73,166.61,29.12393171]
[1729465099786,23.776884,166.72,166.58,20.0]
[1729465099990,23.776884,166.72,166.6,20.0]
[1729465101395,31.81961297,166.73,166.62,20.0]
[1729465102073,30.92,166.73,166.64,20.0]
[1729465102597,32.1855,166.77,166.66,20.0]
[1729465103101,32.1855,166.77,166.68,20.0]
[1729465104279,32.1855,166.77,166.65,12.60264771]
[1729465104280,32.1855,166.77,166.66,20.0]
[1729465104973,32.1855,166.77,166.67,23.776884]
[1729465105198,32.1855,166.77,166.68,20.0]
[1729465109099,23.776884,166.76,166.62,5.34704771]
[1729465109401,32.1855,166.77,166.62,5.44704771]
[1729465109779,32.1855,166.77,166.63,0.1]
[1729465109991,32.1855,166.77,166.65,0.1]
[1729465110197,32.1855,166.77,166.65,49.22393171]
[1729465110393,32.1855,166.77,166.67,43.776884]
[1729465111778,12.4077,166.79,166.69,43.776884]
[1729465115601,12.4077,166.79,166.72,20.0]
[1729465115787,0.89922705,166.8,166.69,43.776884]
[1729465116684,0.89922705,166.8,166.69,48.78245612]
[1729465117078,0.89922705,166.8,166.69,25.00557212]
[1729465117584,0.89922705,166.8,166.7,1.50149373]
[1729465117798,0.89922705,166.8,166.69,25.00557212]
[1729465119692,0.89922705,166.8,166.71,20.0]
[1729465120415,32.4246,166.81,166.73,20.0]
[1729465120798,13.2083,166.83,166.75,20.0]
[1729465123714,13.2083,166.83,166.75,24.99369641]
[1729465125513,13.2083,166.83,166.75,4.99369641]
[1729465125698,13.2083,166.83,166.71,23.776884]
[1729465125899,13.2083,166.83,166.72,20.0]
[1729465126305,13.2083,166.83,166.7,4.79269351]
[1729465126497,13.2083,166.83,166.68,27.5396]
[1729465127514,13.2083,166.83,166.69,20.0]
[1729465127821,13.2083,166.83,166.71,20.0]
[1729465132020,13.2083,166.83,166.73,20.0]
[1729465132315,13.2083,166.83,166.75,20.0]
[1729465133394,33.3827429,166.86,166.77,20.0]
[1729465134003,33.3827429,166.86,166.78,23.776884]
[1729465134212,44.9045,166.93,166.8,23.776884]
[1729465134420,44.9045,166.93,166.83,20.0]
[1729465136310,43.4045,166.93,166.83,20.0]
[1729465137716,23.776884,166.92,166.82,20.0]
[1729465138514,23.776884,166.92,166.82,24.86164806]
[1729465139224,44.30314111,166.93,166.84,20.0]
[1729465140222,43.4045,166.93,166.86,20.0]
[1729465140928,43.4045,166.93,166.83,20.0]
[1729465141126,43.4045,166.93,166.83,25.34704771]
[1729465142414,44.30309046,166.93,166.83,5.34704771]
[1729465142628,44.30309046,166.93,166.82,4.95033566]
[1729465142831,44.30309046,166.93,166.8,29.771884]
[1729465143623,44.30309046,166.93,166.81,25.995]
[1729465144732,44.30309046,166.93,166.83,20.0]
[1729465146236,44.30309046,166.93,166.82,23.776884]
[1729465146237,44.30309046,166.93,166.82,20.0]
[1729465146424,44.30309046,166.93,166.82,25.34704771]
[1729465148432,44.30309046,166.93,166.84,20.0]
[1729465149537,43.4045,166.93,166.84,20.0]
[1729465152134,43.4045,166.93,166.83,20.0]
[1729465153221,44.30301308,166.93,166.83,20.0]
[1729465154124,44.30301308,166.93,166.85,20.0]
[1729465154357,44.30301308,166.93,166.83,20.0]
[1729465156336,44.30301308,166.93,166.85,20.0]
[1729465158068,44.30301308,166.93,166.85,25.34704771]
[1729465158634,43.4045,166.93,166.85,25.34704771]
[1729465159449,43.4045,166.93,166.86,5.34704771]
[1729465159758,43.4045,166.93,166.87,20.0]
[1729465160044,0.89833283,166.96,166.87,20.0]
[1729465160250,0.89833283,166.96,166.87,25.34704771]
[1729465161228,0.89833283,166.96,166.87,5.34704771]
[1729465161422,0.89833283,166.96,166.85,5.01136335]
[1729465161423,23.776884,166.95,166.85,5.01136335]
[1729465161745,0.89833283,166.96,166.85,5.01136335]
[1729465161746,0.89833283,166.96,166.85,5.34704771]
[1729465162136,23.776884,166.95,166.85,5.34704771]
[1729465162333,31.1563,166.93,166.85,5.34704771]
[1729465162538,23.776884,166.92,166.79,5.34704771]
[1729465163640,23.776884,166.9,166.79,5.34704771]
[1729465164240,23.776884,166.88,166.79,5.34704771]
[1729465164652,23.776884,166.88,166.8,20.0]
[1729465165152,31.1563,166.89,166.8,20.0]
[1729465166064,12.1965,166.88,166.8,20.0]
[1729465166447,12.1965,166.88,166.79,4.97632527]
[1729465166637,12.1965,166.88,166.76,25.995]
[1729465166638,23.776884,166.87,166.76,25.995]
[1729465166844,23.776884,166.87,166.76,20.0]
[1729465171171,23.776884,166.85,166.75,4.88172951]
[1729465171357,23.776884,166.85,166.73,20.0]
[1729465171954,23.776884,166.85,166.74,1.50113353]
[1729465172174,23.776884,166.85,166.73,20.0]
[1729465172971,12.8652,166.84,166.73,20.0]
[1729465173166,12.8652,166.84,166.74,1.50113353]
[1729465173167,23.776884,166.83,166.74,1.50113353]
[1729465173350,23.776884,166.83,166.73,24.80221075]
[1729465174361,23.776884,166.83,166.73,4.80221075]
[1729465174560,23.776884,166.83,166.72,5.34704771]
[1729465174969,31.1915,166.82,166.72,5.34704771]
[1729465175269,23.776884,166.81,166.72,5.34704771]
[1729465175945,23.776884,166.81,166.67,35.0346]
[1729465176142,24.67601325,166.81,166.68,29.12393171]
[1729465177371,24.67601325,166.81,166.69,20.0]
[1729465178445,12.5558,166.8,166.69,20.0]
[1729465178647,23.776884,166.79,166.67,24.88691716]
[1729465178869,23.276884,166.79,166.67,24.88691716]
[1729465179065,30.5584,166.78,166.67,24.88691716]
[1729465180182,30.5584,166.78,166.66,5.34704771]
[1729465180693,30.5584,166.78,166.66,10.308106]
[1729465180983,23.776884,166.75,166.66,4.96105829]
[1729465181191,23.776884,166.75,166.62,5.34704771]
[1729465182176,23.776884,166.75,166.63,20.0]
[1729465182376,30.5584,166.74,166.62,10.15781238]
[1729465182588,23.776884,166.73,166.62,4.81076467]
[1729465182768,23.776884,166.71,166.59,34.38664771]
[1729465183479,23.776884,166.71,166.55,29.0396]
[1729465183685,24.67654736,166.71,166.55,34.38664771]
[1729465184180,24.67654736,166.71,166.56,1.50275579]
[1729465184381,0.89966336,166.71,166.57,5.34704771]
[1729465184587,12.5558,166.72,166.57,5.44704771]
[1729465184893,12.5558,166.72,166.6,20.0]
[1729465185068,13.45552634,166.72,166.6,20.0]
[1729465185569,13.45552634,166.72,166.6,25.34704771]
[1729465185975,23.776884,166.71,166.6,25.34704771]
[1729465186799,23.776884,166.71,166.57,20.0]
[1729465186988,23.776884,166.71,166.59,20.0]
[1729465187791,23.776884,166.69,166.59,20.0]
[1729465188094,23.776884,166.69,166.56,20.0]
[1729465188275,23.776884,166.67,166.55,29.0396]
[1729465188795,12.5926,166.68,166.56,5.34704771]
[1729465189698,12.5926,166.68,166.57,43.776884]
[1729465190696,23.776884,166.67,166.57,20.0]
[1729465191096,23.776884,166.67,166.57,21.50266557]
[1729465192974,12.5926,166.68,166.57,21.50266557]
[1729465193980,12.5926,166.68,166.57,20.0]
[1729465196673,12.5926,166.68,166.56,5.34704771]
[1729465196674,31.5436,166.66,166.56,20.0]
[1729465199593,31.5436,166.66,166.54,24.83529437]
[1729465199793,31.5436,166.66,166.53,1.0411303]
[1729465199987,31.5436,166.66,166.54,23.776884]
[1729465200186,31.5436,166.66,166.55,20.0]
[1729465201890,31.5436,166.66,166.57,20.0]
[1729465202600,31.5436,166.66,166.57,25.69333182]
[1729465204181,31.5436,166.66,166.54,1.04151986]
[1729465204906,12.0269,166.65,166.54,1.04151986]
[1729465205204,12.0269,166.65,166.52,5.69333182]
[1729465205379,12.0269,166.65,166.53,23.776884]
[1729465205580,12.0269,166.65,166.54,20.0]
[1729465205802,12.0269,166.65,166.54,25.69333182]
[1729465206302,12.0269,166.65,166.55,23.776884]
[1729465206477,12.0269,166.65,166.56,21.50275579]
[1729465206680,12.0269,166.65,166.56,25.69333182]
[1729465212979,12.0269,166.65,166.57,1.50266557]
[1729465213183,12.0269,166.65,166.56,25.69333182]
[1729465217809,12.0269,166.65,166.58,20.0]
[1729465219910,12.0269,166.65,166.6,20.0]
[1729465220302,12.0269,166.65,166.6,26.0078596]
[1729465220529,31.5436,166.66,166.62,20.0]
[1729465220703,12.3555,166.69,166.62,20.0]
[1729465220894,12.3555,166.69,166.62,26.0078596]
[1729465221810,12.3555,166.69,166.63,6.0078596]
[1729465222010,12.3555,166.69,166.64,20.0]
[1729465222510,12.3555,166.69,166.64,6.0078596]
[1729465222815,12.3555,166.69,166.65,20.0]
[1729465225091,12.3555,166.69,166.55,29.0396]
[1729465225294,13.25524102,166.69,166.59,6.0078596]
[1729465225895,23.776884,166.68,166.59,6.0078596]
[1729465226818,23.776884,166.68,166.6,20.0]
[1729465227603,13.25524102,166.69,166.6,20.0]
[1729465229197,13.25524102,166.69,166.6,19.5]
[1729465229902,13.25524102,166.69,166.6,25.5078596]
[1729465230116,23.776884,166.68,166.6,25.5078596]
[1729465231396,30.6077,166.67,166.6,25.5078596]
[1729465231595,30.6077,166.67,166.57,20.0]
[1729465231801,13.2209,166.65,166.57,20.0]
[1729465232018,13.2209,166.65,166.56,6.0078596]
[1729465232197,14.12097663,166.65,166.56,6.0078596]
[1729465233326,14.12097663,166.65,166.57,20.0]
[1729465234801,30.5972,166.64,166.57,20.0]
[1729465238423,31.683,166.6,166.47,0.6122939]
[1729465238900,31.683,166.6,166.47,6.04237572]
[1729465239225,31.683,166.6,166.47,11.0547468]
[1729465240017,31.683,166.6,166.48,23.776884]
[1729465240218,31.683,166.6,166.47,5.62466498]
[1729465240600,31.683,166.6,166.48,20.0]
[1729465241014,23.776884,166.59,166.48,20.0]
[1729465241223,31.683,166.56,166.47,5.62466498]
[1729465242297,23.776884,166.55,166.47,0.6122939]
[1729465243308,0.2,166.54,166.47,0.6122939]
[1729465243625,23.776884,166.5,166.47,0.6122939]
[1729465245021,23.876884,166.5,166.47,0.6122939]
[1729465245325,0.1,166.49,166.33,32.8893]
[1729465245500,0.1,166.48,166.33,32.8893]
[1729465245826,30.1716,166.45,166.33,32.8893]
[1729465246213,23.776884,166.44,166.31,12.1573]
[1729465246418,30.1716,166.45,166.31,12.1573]
[1729465246713,31.07295469,166.45,166.31,12.1573]
[1729465246912,31.07295469,166.45,166.31,17.11562468]
[1729465247432,23.776884,166.44,166.31,17.11562468]
[1729465247627,23.876884,166.44,166.31,4.95832468]
[1729465247924,23.876884,166.44,166.3,0.6122939]
[1729465248403,12.1437,166.43,166.3,0.6122939]
[1729465248607,12.1437,166.43,166.27,7.76904171]
[1729465248804,12.1437,166.43,166.28,4.98697071]
[1729465249109,12.1437,166.43,166.3,20.0]
[1729465249319,12.1437,166.43,166.32,20.0]
[1729465249820,12.1437,166.43,166.28,24.88697071]
[1729465250123,12.1437,166.43,166.3,20.0]
[1729465250324,31.07295469,166.45,166.31,4.88697071]
[1729465250909,31.07295469,166.45,166.33,20.0]
[1729465251114,31.07295469,166.45,166.34,23.776884]
[1729465251443,31.07295469,166.45,166.35,20.0]
[1729465251803,31.07295469,166.45,166.36,1.50456242]
[1729465252011,31.07295469,166.45,166.29,32.5199]
[1729465252426,31.07295469,166.45,166.3,4.88697071]
[1729465252732,31.07295469,166.45,166.3,5.18878738]
[1729465252733,31.07303927,166.45,166.3,5.18878738]
[1729465252920,31.07303927,166.45,166.31,1.50501476]
[1729465253106,31.07303927,166.45,166.32,20.0]
[1729465253308,31.07303927,166.45,166.32,25.18878738]
[1729465254027,31.07303927,166.45,166.33,23.776884]
[1729465254230,31.07303927,166.45,166.32,20.0]
[1729465255515,30.1716,166.45,166.35,23.776884]
[1729465255711,30.1716,166.45,166.38,20.0]
[1729465256342,30.1716,166.45,166.36,20.0]
[1729465256635,12.1437,166.47,166.38,20.0]
[1729465256843,30.2488,166.49,166.4,20.0]
[1729465257148,0.90104255,166.5,166.43,23.776884]
[1729465257442,0.90104255,166.5,166.44,20.0]
[1729465257736,0.90104255,166.5,166.38,20.0]
[1729465257920,0.90104255,166.5,166.4,20.0]
[1729465258341,0.90104255,166.5,166.41,1.50411035]
[1729465258636,0.90104255,166.5,166.4,20.0]
[1729465259537,30.2488,166.53,166.42,20.0]
[1729465260833,31.1494623,166.53,166.42,20.0]
[1729465261136,30.2488,166.53,166.44,20.0]
[1729465261521,30.2488,166.53,166.38,20.0]
[1729465261835,31.14948628,166.53,166.42,20.0]
[1729465263439,23.776884,166.52,166.38,20.0]
[1729465264118,31.14948628,166.53,166.38,20.0]
[1729465264453,31.14948628,166.53,166.38,25.18878738]
[1729465264626,31.14948628,166.53,166.4,20.0]
[1729465264945,31.14948628,166.53,166.38,23.776884]
[1729465265520,23.776884,166.52,166.37,30.071]
[1729465265937,23.776884,166.52,166.38,20.0]
[1729465266928,23.776884,166.52,166.4,20.0]
[1729465268047,30.2488,166.53,166.4,20.0]
[1729465268547,31.14956524,166.53,166.42,20.0]
[1729465269344,31.14956524,166.53,166.38,43.776884]
[1729465271551,30.2488,166.53,166.38,43.776884]
[1729465271755,31.14968954,166.53,166.38,43.776884]
[1729465272052,0.11067739,166.39,166.38,43.776884]
[1729465272548,0.04429346,166.39,166.38,43.776884]
[1729465274540,0.04429346,166.39,166.37,36.35793215]
[1729465274832,0.04429346,166.39,166.37,6.28693215]
[1729465275151,0.04429346,166.39,166.35,12.401]
[1729465275829,0.04429346,166.39,166.37,20.0]
[1729465276626,0.04429346,166.39,166.38,23.776884]
[1729465276844,0.11435902,166.43,166.39,20.0]
[1729465276845,1e-08,166.43,166.39,20.0]
[1729465277450,1e-08,166.43,166.41,20.0]
[1729465277678,1e-08,166.43,166.42,43.776884]
[1729465277951,1e-08,166.43,166.42,45.21453201]
[1729465278257,1e-08,166.43,166.42,43.276884]
[1729465279151,12.8322,166.56,166.43,20.0]
[1729465279342,12.8322,166.56,166.43,25.18878738]
[1729465279743,12.8322,166.56,166.43,31.18378738]
[1729465279954,12.8322,166.56,166.43,31.28378738]
[1729465280245,12.8322,166.65,166.5,23.776884]
[1729465280429,12.8322,166.65,166.55,20.0]
[1729465281235,12.8322,166.65,166.5,20.0]
[1729465281431,13.73226613,166.65,166.53,23.776884]
[1729465281639,13.73226613,166.65,166.54,20.0]
[1729465282168,13.73226613,166.65,166.52,20.0]
[1729465282454,13.73226613,166.65,166.51,23.776884]
[1729465282455,13.73226613,166.65,166.54,20.0]
[1729465283559,23.776884,166.64,166.5,20.0]
[1729465283854,23.776884,166.64,166.52,20.0]
[1729465284053,23.776884,166.64,166.53,2.00553143]
[1729465284254,23.776884,166.64,166.52,20.0]
[1729465285341,23.776884,166.64,166.53,2.00553143]
[1729465285544,23.776884,166.64,166.52,20.0]
[1729465287773,13.73226613,166.65,166.54,20.0]
[1729465288654,13.73226613,166.65,166.52,23.776884]
[1729465288853,13.73226613,166.65,166.53,20.0]
[1729465289161,23.776884,166.64,166.53,20.0]
[1729465289863,13.73226613,166.65,166.56,23.776884]
[1729465290049,13.73226613,166.65,166.5,114.47873873]
[1729465290050,12.8322,166.65,166.57,20.0]
[1729465290551,12.8322,166.65,166.53,20.0]
[1729465290751,12.8322,166.65,166.52,30.1578]
[1729465290752,13.73233323,166.65,166.52,23.776884]
[1729465290956,13.73233323,166.65,166.53,20.0]
[1729465291348,23.776884,166.64,166.53,20.0]
[1729465291566,23.776884,166.64,166.5,114.37873873]
[1729465291948,24.67717641,166.62,166.5,114.37873873]
[1729465292142,0.13182704,166.51,166.5,114.37873873]
[1729465292771,0.13182704,166.51,166.5,134.37873873]
[1729465293940,0.13182704,166.51,166.5,169.52243601]
[1729465294940,0.13182704,166.51,166.5,163.34441011]
[1729465295164,0.02848877,166.51,166.5,158.15562273]
[1729465296752,0.02848877,166.51,166.5,163.34441011]
[1729465297063,0.02848877,166.51,166.5,158.15562273]
[1729465297265,0.02848877,166.51,166.5,163.34441011]
[1729465297472,0.02848877,166.51,166.5,178.06192775]
[1729465298152,0.11209815,166.52,166.51,46.862184]
[1729465298351,0.10949138,166.54,166.53,20.1]
[1729465298550,0.10949138,166.54,166.53,50.26588638]
[1729465298761,0.1087648,166.55,166.54,23.976884]
[1729465298948,0.1087648,166.55,166.54,49.06567138]
[1729465299143,0.1087648,166.55,166.54,49.16567138]
[1729465299864,0.1087648,166.55,166.54,49.06567138]
[1729465300175,0.1087648,166.55,166.54,49.16567138]
[1729465300867,0.1087648,166.55,166.54,55.35333782]
[1729465301071,0.1087648,166.55,166.54,57.25542917]
[1729465301286,0.1087648,166.55,166.54,55.35333782]
[1729465301457,0.1087648,166.55,166.54,56.55351635]
[1729465301660,30.9015,166.67,166.55,0.1]
[1729465301849,12.2288,166.69,166.55,49.16567138]
[1729465302050,12.2288,166.69,166.56,43.976884]
[1729465302273,12.2288,166.69,166.56,52.01037138]